bitfinex/quotes_ETHUSD_20240604
["timestamp","ask_amount","ask_price","bid_price","bid_amount"]
[1717467830692,0.13249363,3775.5,3775.3,0.92027802]
[1717467830895,2.64844,3775.8,3775.3,0.92027802]
[1717467831064,0.13249363,3775.7,3775.3,0.92027802]
[1717467831265,2.64844,3775.8,3775.3,0.92027802]
[1717467831484,0.13249363,3775.6,3775.2,0.563]
[1717467831658,2.64844,3775.8,3775.2,0.563]
[1717467832870,2.64844,3775.8,3775.3,0.92028872]
[1717467833270,2.64844,3775.8,3775.2,0.563]
[1717467833271,0.13249363,3775.7,3775.2,0.563]
[1717467833652,2.64844,3775.8,3775.2,0.563]
[1717467834950,0.13224796,3775.7,3775.2,0.563]
[1717467835194,2.64861,3775.6,3775.2,0.563]
[1717467837370,0.13209824,3775.5,3775.2,0.563]
[1717467837697,2.64861,3775.6,3775.2,0.563]
[1717467839403,2.64861,3775.6,3775.0,1.39031812]
[1717467839587,2.64861,3775.6,3775.1,0.9203002]
[1717467840171,2.64861,3775.6,3775.1,1.4833002]
[1717467840394,2.64861,3775.6,3775.1,0.563]
[1717467841461,2.64861,3775.6,3775.2,0.92029423]
[1717467842702,2.64861,3775.6,3775.1,0.563]
[1717467842902,2.64861,3775.6,3775.2,0.92029871]
[1717467843509,2.64861,3775.6,3775.1,1.87512245]
[1717467844462,2.64861,3775.6,3775.2,0.92030187]
[1717467844663,0.13212514,3775.5,3775.2,0.92030187]
[1717467844863,0.13212514,3775.5,3775.1,1.87512245]
[1717467845079,0.13212514,3775.5,3775.2,1.83367191]
[1717467845309,0.13212514,3775.5,3775.2,0.91338952]
[1717467847120,2.64872,3775.4,3775.0,1.390424]
[1717467847414,2.64872,3775.4,3775.0,0.01]
[1717467847708,0.13210208,3775.3,3775.0,0.01]
[1717467847895,2.64872,3775.4,3775.0,0.01]
[1717467848869,2.64872,3775.4,3775.0,0.573]
[1717467849293,2.6485,3775.8,3775.3,0.563]
[1717467849616,2.6485,3775.8,3775.1,2.396]
[1717467849617,2.6485,3775.8,3775.7,0.563]
[1717467849813,2.6485,3775.8,3775.1,2.94874873]
[1717467849814,2.6485,3775.8,3775.5,0.563]
[1717467850111,2.64825,3776.1,3775.7,0.563]
[1717467850411,2.99641184,3776.1,3775.7,0.563]
[1717467850575,2.64825,3776.1,3775.5,0.563]
[1717467850764,2.64825,3776.1,3775.6,2.466]
[1717467850964,0.83336836,3776.4,3775.7,0.563]
[1717467850965,2.64803,3776.4,3775.7,0.563]
[1717467851194,2.64803,3776.4,3775.9,0.563]
[1717467851531,5.09652,3776.7,3776.1,0.563]
[1717467851976,0.12774714,3776.6,3776.1,0.563]
[1717467852372,2.64782,3776.7,3776.1,0.563]
[1717467852604,0.12774714,3776.6,3776.1,0.563]
[1717467853625,0.12774714,3776.6,3776.3,0.563]
[1717467853976,2.64782,3776.7,3776.3,0.563]
[1717467854178,0.12789681,3776.6,3776.3,0.563]
[1717467854511,2.64782,3776.7,3776.3,0.563]
[1717467855195,0.12789681,3776.6,3776.3,0.563]
[1717467855398,2.64782,3776.7,3776.3,0.563]
[1717467855588,0.12789681,3776.6,3776.3,0.563]
[1717467855770,2.64782,3776.7,3776.3,0.563]
[1717467855967,0.12789681,3776.5,3776.3,0.563]
[1717467856173,2.64782,3776.7,3776.3,0.563]
[1717467856398,0.12789681,3776.6,3776.3,0.563]
[1717467856672,2.64782,3776.7,3776.3,0.563]
[1717467857098,0.12789681,3776.6,3776.3,0.563]
[1717467857495,2.64782,3776.7,3776.3,0.563]
[1717467857900,0.12789681,3776.6,3776.3,0.563]
[1717467858211,2.64782,3776.7,3776.3,0.563]
[1717467858600,2.64782,3776.7,3776.0,2.466]
[1717467858802,2.64782,3776.7,3776.2,0.563]
[1717467862287,0.12789681,3776.6,3776.2,0.563]
[1717467862693,2.64782,3776.7,3776.2,0.563]
[1717467863216,2.64782,3776.7,3776.0,3.029]
[1717467863912,2.64799,3776.5,3775.8,0.563]
[1717467864274,0.12783157,3776.4,3775.8,0.563]
[1717467864478,2.64799,3776.5,3775.8,0.563]
[1717467864728,0.12783157,3776.3,3775.8,0.563]
[1717467864884,2.64799,3776.5,3775.8,0.563]
[1717467865082,3.163332,3776.5,3775.8,0.563]
[1717467865286,0.12783157,3776.4,3775.8,0.563]
[1717467867597,2.64799,3776.5,3775.8,0.563]
[1717467868810,2.64799,3776.5,3775.6,2.64857]
[1717467869010,2.64799,3776.5,3775.8,0.563]
[1717467874990,0.12780471,3776.4,3775.8,0.563]
[1717467875423,2.64799,3776.5,3775.8,0.563]
[1717467876643,2.64799,3776.5,3775.7,0.563]
[1717467877141,2.4513,3776.4,3775.7,0.563]
[1717467879112,2.64809,3776.3,3775.6,2.64857]
[1717467879423,2.64809,3776.3,3775.6,3.21157]
[1717467885430,2.64809,3776.3,3775.6,0.563]
[1717467886459,2.3451,3776.2,3775.4,1.38027714]
[1717467886677,2.64826,3776.1,3775.3,2.64877]
[1717467887155,2.64826,3776.1,3775.4,0.563]
[1717467889548,2.64826,3776.1,3775.3,4.02908357]
[1717467889841,2.4129,3776.0,3775.3,0.563]
[1717467890640,0.12784313,3775.9,3775.3,0.563]
[1717467890940,0.12784313,3775.9,3775.1,3.70991357]
[1717467890941,0.12784313,3775.9,3775.1,1.38031357]
[1717467891246,2.64841,3775.9,3775.3,0.563]
[1717467891755,0.12784313,3775.8,3775.3,0.563]
[1717467893753,2.64841,3775.9,3775.3,0.563]
[1717467894052,2.64841,3775.9,3775.5,0.563]
[1717467897027,2.64841,3775.9,3775.1,1.93316825]
[1717467897227,2.64841,3775.9,3775.4,0.563]
[1717467900751,0.12778939,3775.8,3775.4,0.563]
[1717467901244,2.64841,3775.9,3775.4,0.563]
[1717467902282,2.64841,3775.9,3775.6,0.563]
[1717467902560,2.64817,3776.2,3775.6,0.563]
[1717467902794,0.12777404,3775.8,3775.6,0.563]
[1717467902925,2.64817,3776.2,3775.6,0.563]
[1717467905022,2.64817,3776.2,3775.8,0.563]
[1717467905229,0.12778554,3776.1,3775.8,0.563]
[1717467906245,2.64796,3776.5,3775.8,0.563]
[1717467906427,0.12778554,3776.4,3776.0,0.563]
[1717467906958,2.64774,3776.8,3776.0,2.9497]
[1717467907125,2.64774,3776.8,3776.2,0.563]
[1717467907327,0.12790454,3776.7,3776.2,0.563]
[1717467907558,0.12790454,3776.7,3776.3,0.91998636]
[1717467907972,0.12805807,3776.6,3776.3,0.91998636]
[1717467908281,2.64774,3776.8,3776.2,1.05127923]
[1717467908475,2.64774,3776.8,3776.4,0.563]
[1717467908629,0.12833443,3776.7,3776.4,0.563]
[1717467908829,2.325,3776.9,3776.4,0.563]
[1717467909148,0.12833443,3776.8,3776.4,0.563]
[1717467909748,0.12833443,3776.8,3776.2,0.48827923]
[1717467909966,0.12833443,3776.8,3776.2,1.05127923]
[1717467910843,0.12833443,3776.8,3776.0,3.76674718]
[1717467910844,2.64784,3776.7,3775.8,0.75275923]
[1717467911082,2.64784,3776.7,3776.0,0.563]
[1717467911232,2.64784,3776.7,3776.1,2.2713]
[1717467911428,0.12833443,3776.6,3776.1,2.2713]
[1717467911910,0.12833443,3776.6,3776.2,0.563]
[1717467914149,4.98419,3777.1,3776.2,0.563]
[1717467914353,0.12824233,3777.0,3776.2,0.563]
[1717467915735,0.12824233,3777.0,3776.2,1.30454238]
[1717467916755,4.98419,3777.1,3776.2,1.30454238]
[1717467917156,4.98419,3777.1,3776.4,0.563]
[1717467917478,2.64732,3777.4,3777.0,0.563]
[1717467917645,3.26317778,3777.4,3777.0,0.563]
[1717467917838,3.26317778,3777.4,3776.8,0.563]
[1717467917839,0.12831139,3777.3,3776.8,0.563]
[1717467920234,2.3544,3777.2,3776.5,2.9214]
[1717467920436,0.12850327,3777.1,3776.5,3.4844]
[1717467920859,2.3544,3777.2,3776.5,3.4844]
[1717467922197,0.12850327,3777.1,3776.5,3.4844]
[1717467922695,2.3544,3777.2,3776.5,3.4844]
[1717467922858,2.64754,3777.1,3776.5,3.4844]
[1717467924292,2.64754,3777.1,3776.5,2.3714]
[1717467924454,2.64754,3777.1,3776.5,0.563]
[1717467924655,0.12848792,3777.0,3776.2,5.05109]
[1717467924898,2.64754,3777.1,3776.5,0.563]
[1717467926982,2.64754,3777.1,3776.3,0.55]
[1717467927195,2.64754,3777.1,3776.2,5.05109]
[1717467927196,2.6477,3776.9,3775.9,40.14287]
[1717467927362,2.6477,3776.9,3776.2,0.563]
[1717467927660,3.21088,3776.9,3776.2,0.563]
[1717467927861,0.12835746,3776.8,3776.6,0.563]
[1717467929721,2.64746,3777.2,3776.6,0.563]
[1717467929927,0.12832676,3776.7,3776.6,0.563]
[1717467930136,2.64746,3777.2,3776.6,0.563]
[1717467930274,0.12831139,3776.7,3776.6,0.563]
[1717467930474,2.64746,3777.2,3776.6,0.86423]
[1717467930688,0.12831139,3777.1,3776.6,0.563]
[1717467931776,2.64746,3777.2,3776.6,0.563]
[1717467933301,0.12831139,3777.1,3776.6,0.563]
[1717467933910,2.64746,3777.2,3776.6,0.563]
[1717467935113,2.64746,3777.2,3776.4,3.0123]
[1717467936902,5.01706,3777.2,3776.4,3.0123]
[1717467937537,5.01706,3777.2,3776.4,5.66260545]
[1717467938694,5.01706,3777.2,3776.4,5.09960545]
[1717467939013,5.01706,3777.2,3776.4,3.0123]
[1717467939220,0.12834593,3777.1,3776.4,3.0123]
[1717467939584,5.01706,3777.2,3776.4,3.0123]
[1717467941821,2.64768,3776.9,3776.0,3.75103873]
[1717467942118,2.64768,3776.9,3776.3,0.563]
[1717467945532,0.12838433,3776.8,3776.3,0.563]
[1717467945700,2.2757,3776.7,3776.0,4.57833184]
[1717467945900,2.2757,3776.7,3776.2,0.563]
[1717467947335,2.2757,3776.7,3776.0,4.05448657]
[1717467947526,2.2757,3776.7,3776.2,0.563]
[1717467947732,2.64768,3776.9,3776.5,0.563]
[1717467947931,2.64768,3776.9,3776.7,0.563]
[1717467948104,0.12825385,3776.8,3776.7,0.563]
[1717467951128,2.64747,3777.2,3776.7,0.563]
[1717467951445,0.12825385,3776.8,3776.7,0.563]
[1717467952005,2.64747,3777.2,3776.7,0.563]
[1717467952604,0.12825385,3777.1,3776.7,0.563]
[1717467953744,0.12825385,3777.1,3776.5,3.0083]
[1717467953948,0.12825385,3777.1,3776.6,0.91993511]
[1717467954460,0.12825385,3777.1,3776.5,3.0083]
[1717467956429,0.12825385,3777.1,3776.6,0.91994187]
[1717467964355,2.3973,3777.0,3776.6,0.91994187]
[1717467964574,2.52558071,3777.0,3776.6,0.91994187]
[1717467967057,0.12828071,3777.0,3776.6,0.91994187]
[1717467967356,5.07957,3777.2,3776.7,0.91994187]
[1717467967670,0.1284534,3776.9,3776.5,2.49569207]
[1717467967860,5.07957,3777.2,3776.6,0.91991663]
[1717467968043,0.1284534,3776.8,3776.6,0.91991663]
[1717467968246,0.1284534,3776.8,3776.6,1.85092681]
[1717467968565,5.07957,3777.2,3776.7,0.91991663]
[1717467969056,5.07957,3777.2,3776.5,1.93269207]
[1717467969267,5.07957,3777.2,3776.6,0.563]
[1717467969427,5.07957,3777.2,3776.6,1.4829165]
[1717467969763,5.07957,3777.2,3776.7,0.9199165]
[1717467971473,2.64747,3777.2,3776.7,0.9199165]
[1717467971967,0.12853397,3777.1,3776.7,1.76801436]
[1717467972184,0.12853397,3777.1,3776.8,0.9199165]
[1717467972679,0.12853397,3777.1,3776.7,0.84809786]
[1717467973130,0.12853397,3777.1,3776.8,0.563]
[1717467973532,2.64747,3777.2,3776.8,0.563]
[1717467974875,2.4219,3777.4,3776.8,0.563]
[1717467975578,0.12852247,3777.3,3776.8,0.563]
[1717467975742,2.4219,3777.4,3776.8,0.563]
[1717467976070,0.12852247,3777.2,3776.8,0.563]
[1717467976270,2.4219,3777.4,3776.8,0.563]
[1717467976783,0.12852247,3777.3,3776.8,0.563]
[1717467982254,0.12852247,3777.3,3776.6,2.64783]
[1717467982460,0.12852247,3777.3,3776.8,0.563]
[1717467982693,2.4219,3777.4,3776.8,0.563]
[1717467983196,0.12852247,3777.3,3776.8,0.563]
[1717467983601,2.64726,3777.5,3777.0,0.563]
[1717467985028,3.7363383,3777.9,3777.2,0.563]
[1717467985029,3.75821781,3777.8,3777.2,0.563]
[1717467985374,3.75821781,3777.8,3777.2,2.9349]
[1717467985582,2.64706,3777.8,3777.5,0.563]
[1717467985883,5.14684,3778.1,3777.6,2.3719]
[1717467986513,5.14684,3778.1,3777.7,0.563]
[1717467986825,5.14684,3778.1,3777.8,0.563]
[1717467986982,0.12859537,3778.0,3777.6,2.9349]
[1717467987185,0.12859537,3778.0,3777.6,3.42164937]
[1717467990017,0.12859537,3778.0,3777.6,1.04974937]
[1717467990776,5.14684,3778.1,3777.6,1.04974937]
[1717467993548,0.1287872,3778.0,3777.6,1.04974937]
[1717467994123,5.14684,3778.1,3777.7,2.411]
[1717467994323,5.14684,3778.1,3777.7,2.70077494]
[1717467994521,5.14684,3778.1,3777.7,3.26377494]
[1717467996575,5.14684,3778.1,3777.7,2.974]
[1717467997879,5.14684,3778.1,3777.7,2.411]
[1717467998548,0.12902889,3778.0,3777.7,2.411]
[1717467999169,5.14684,3778.1,3777.3,2.4808]
[1717467999328,5.14684,3778.1,3777.7,0.563]
[1717467999866,5.14684,3778.1,3777.6,0.563]
[1717468000256,5.14684,3778.1,3777.3,2.4808]
[1717468000457,5.14684,3778.1,3777.5,0.563]
[1717468000771,2.64684,3778.1,3777.5,0.563]
[1717468001845,2.3121,3778.0,3777.3,2.4808]
[1717468002051,2.3121,3778.0,3777.4,0.563]
[1717468003473,2.64697,3777.9,3777.4,0.563]
[1717468003676,2.64697,3777.9,3777.3,2.4808]
[1717468004184,0.12902502,3777.8,3777.3,3.0438]
[1717468004540,2.64697,3777.9,3777.3,3.0438]
[1717468007483,2.64697,3777.9,3777.5,0.563]
[1717468007657,2.64678,3778.2,3777.6,2.2712]
[1717468008301,0.12900586,3778.1,3777.6,2.2712]
[1717468008478,2.64694,3778.0,3777.2,2.64741]
[1717468008692,2.64694,3778.0,3777.2,3.21041]
[1717468009179,2.64694,3778.0,3777.4,0.563]
[1717468009686,0.12904422,3777.9,3777.4,0.563]
[1717468012169,0.12904422,3777.9,3777.2,2.64741]
[1717468012496,2.64694,3778.0,3777.4,0.563]
[1717468012692,3.142234,3778.0,3777.4,0.563]
[1717468012898,0.12902889,3777.9,3777.2,2.64741]
[1717468013284,0.12902889,3777.9,3777.3,0.563]
[1717468015371,0.12902889,3777.9,3777.2,2.64741]
[1717468015571,0.12902889,3777.9,3777.3,0.563]
[1717468018516,2.64705,3777.8,3777.1,2.2712]
[1717468018680,2.64705,3777.8,3777.3,0.563]
[1717468019019,0.12907489,3777.7,3777.1,0.563]
[1717468019324,2.44987489,3777.7,3777.1,0.563]
[1717468019491,2.3208,3777.7,3777.1,0.563]
[1717468021712,2.3208,3777.7,3777.3,0.563]
[1717468022244,0.12907489,3777.6,3777.3,0.563]
[1717468028512,2.3208,3777.7,3777.3,0.563]
[1717468028712,0.12904806,3777.6,3777.3,0.563]
[1717468028920,2.3208,3777.7,3777.3,0.563]
[1717468029241,0.12904806,3777.6,3777.3,0.563]
[1717468029425,0.12904806,3777.6,3777.1,0.55274873]
[1717468029633,0.12904806,3777.6,3777.2,0.563]
[1717468029803,2.3208,3777.7,3777.3,0.91980919]
[1717468030247,0.12904806,3777.6,3777.3,0.91980919]
[1717468030843,0.12904806,3777.6,3777.4,0.91981002]
[1717468031051,0.12904806,3777.6,3777.2,1.11574873]
[1717468031237,0.12904806,3777.6,3777.3,0.9198114]
[1717468031416,2.3208,3777.7,3777.3,0.9198114]
[1717468031618,0.12904806,3777.5,3777.3,0.9198114]
[1717468031842,2.3208,3777.7,3777.3,0.9198114]
[1717468032027,0.12904806,3777.4,3777.3,0.9198114]
[1717468032227,2.3208,3777.7,3777.3,0.91981153]
[1717468032714,0.12904806,3777.6,3777.3,0.91981153]
[1717468034757,2.64705,3777.8,3777.3,0.91981153]
[1717468034956,0.12902888,3777.7,3777.3,1.47256026]
[1717468035128,0.12902888,3777.7,3777.4,2.3012]
[1717468035331,4.95245,3778.1,3777.4,2.3012]
[1717468035332,4.95245,3778.1,3777.5,0.91981153]
[1717468035521,0.12903271,3778.0,3777.5,0.91981153]
[1717468036816,0.12903271,3778.0,3777.4,2.3012]
[1717468037011,0.12903271,3778.0,3777.5,0.91976875]
[1717468042534,0.12903271,3778.0,3777.6,0.91976875]
[1717468042884,0.12903271,3778.0,3777.3,1.11574873]
[1717468043026,0.12903271,3778.0,3777.4,0.91977752]
[1717468045244,0.80459676,3778.0,3777.5,0.91977752]
[1717468045446,0.80459676,3778.0,3777.2,2.49540186]
[1717468045649,0.12903271,3778.0,3777.3,0.91981827]
[1717468045861,0.12903271,3778.0,3777.3,1.472567]
[1717468046530,4.95245,3778.1,3777.3,1.472567]
[1717468047751,4.95245,3778.1,3777.3,2.035567]
[1717468047954,4.95245,3778.1,3777.4,0.91981827]
[1717468048178,5.75407299,3778.1,3777.4,0.91981827]
[1717468049179,2.3763,3778.0,3777.4,0.91981827]
[1717468049396,2.3763,3778.0,3777.5,0.91981827]
[1717468049682,2.3763,3778.0,3777.3,0.55274873]
[1717468049972,0.12907489,3777.9,3777.3,1.47255528]
[1717468050339,0.12907489,3777.9,3777.4,0.91980655]
[1717468050565,0.12907489,3777.9,3777.2,0.55274873]
[1717468050769,0.12907489,3777.9,3777.2,0.91983016]
[1717468051751,3.48745781,3778.0,3777.2,0.91983016]
[1717468052746,3.48745781,3778.0,3777.2,1.48283016]
[1717468052984,2.64697,3777.9,3777.3,0.91983016]
[1717468053280,0.12482742,3777.8,3777.3,0.91983016]
[1717468053782,2.64697,3777.9,3777.3,0.91983016]
[1717468053940,0.12387076,3777.8,3777.3,0.91983016]
[1717468054145,2.64697,3777.9,3777.3,0.91983016]
[1717468054974,0.12265126,3777.8,3777.3,0.91983016]
[1717468055177,2.64697,3777.9,3777.3,0.91983016]
[1717468055482,0.12167126,3777.8,3777.3,0.91983016]
[1717468055986,2.64697,3777.9,3777.4,0.91983016]
[1717468056195,0.12045679,3777.8,3777.1,3.20022873]
[1717468056350,2.64697,3777.9,3777.2,1.48283672]
[1717468056550,2.64697,3777.9,3777.3,0.91983691]
[1717468056795,0.11948679,3777.8,3777.3,0.91983691]
[1717468056980,2.64697,3777.9,3777.3,0.91983691]
[1717468057302,0.11948679,3777.8,3777.3,0.91983691]
[1717468057696,2.64697,3777.9,3777.3,0.91983691]
[1717468057990,0.11884012,3777.8,3777.3,0.91983691]
[1717468058192,2.64697,3777.9,3777.3,0.91983691]
[1717468058393,0.11847609,3777.8,3777.3,0.91983691]
[1717468058553,2.64697,3777.9,3777.3,0.91983691]
[1717468058753,0.11847609,3777.8,3777.3,0.91983691]
[1717468058989,2.64697,3777.9,3777.3,0.91983691]
[1717468059191,0.11780942,3777.8,3777.3,0.91983691]
[1717468059512,2.64697,3777.9,3777.3,0.91983691]
[1717468059826,0.11779992,3777.8,3777.3,0.91983691]
[1717468059972,0.11779992,3777.8,3777.4,0.91983691]
[1717468060171,0.11779992,3777.8,3777.1,6.16332873]
[1717468060172,2.64697,3777.9,3777.2,1.37975537]
[1717468060491,2.64697,3777.9,3777.3,0.91983633]
[1717468060803,0.11559992,3777.8,3777.4,0.91983633]
[1717468061099,2.64697,3777.9,3777.2,1.37975537]
[1717468061250,2.64697,3777.9,3777.2,2.29959306]
[1717468061453,2.64697,3777.9,3777.3,0.91983769]
[1717468061653,2.64697,3777.9,3777.4,0.91983769]
[1717468061895,0.11530092,3777.8,3777.2,2.85234179]
[1717468062099,0.11530092,3777.8,3777.3,0.91981521]
[1717468062302,2.64697,3777.9,3777.3,0.91981521]
[1717468062717,2.64697,3777.9,3777.4,0.91980432]
[1717468062920,2.64697,3777.9,3777.5,0.91980432]
[1717468063089,2.64697,3777.9,3777.3,0.55274873]
[1717468063090,2.64697,3777.9,3777.6,0.91980432]
[1717468063390,2.64697,3777.9,3777.3,0.55274873]
[1717468063607,2.64697,3777.9,3777.3,1.47250738]
[1717468064915,2.64697,3777.9,3777.4,0.91975865]
[1717468065313,2.64697,3777.9,3777.2,2.6212594]
[1717468065314,2.64697,3777.9,3777.2,1.93245521]
[1717468065617,0.11277696,3777.8,3777.3,0.91981013]
[1717468065813,0.11277696,3777.8,3777.4,0.91981013]
[1717468066013,0.11277696,3777.8,3777.2,1.93245521]
[1717468066224,2.64697,3777.9,3777.3,0.91981116]
[1717468066426,2.64697,3777.9,3777.4,0.91981116]
[1717468066723,4.90047,3777.9,3777.2,1.93245521]
[1717468066884,4.90047,3777.9,3777.2,2.85226458]
[1717468067220,4.90047,3777.9,3777.3,0.91980937]
[1717468067443,4.90047,3777.9,3777.4,0.91980937]
[1717468067726,4.90047,3777.9,3777.2,1.93245521]
[1717468067937,4.90047,3777.9,3777.3,1.94099388]
[1717468068235,4.90047,3777.9,3777.4,0.91981581]
[1717468068431,4.90047,3777.9,3777.5,0.91981581]
[1717468068651,4.90047,3777.9,3777.6,0.91981581]
[1717468068797,4.90047,3777.9,3777.3,0.55274873]
[1717468068997,4.90047,3777.9,3777.4,0.91980227]
[1717468069197,4.90047,3777.9,3777.5,0.91980227]
[1717468069512,4.90047,3777.9,3777.2,1.93245521]
[1717468069820,4.90047,3777.9,3777.2,5.50256257]
[1717468070024,4.90047,3777.9,3777.3,0.91980191]
[1717468070536,4.90047,3777.9,3777.3,0.563]
[1717468070704,4.90047,3777.9,3777.4,0.91980113]
[1717468071344,4.90047,3777.9,3777.5,0.91980113]
[1717468071641,4.90047,3777.9,3777.3,0.55274873]
[1717468071829,4.90047,3777.9,3777.3,1.47252894]
[1717468072035,4.90047,3777.9,3777.4,0.91978021]
[1717468072234,4.90047,3777.9,3777.5,0.91978021]
[1717468072431,4.90047,3777.9,3777.2,2.49545043]
[1717468072638,4.90047,3777.9,3777.3,0.91979629]
[1717468075475,4.90047,3777.9,3777.3,1.4725368]
[1717468076896,4.90047,3777.9,3777.4,0.91979136]
[1717468077187,4.90047,3777.9,3777.5,0.91979136]
[1717468077398,4.90047,3777.9,3777.3,0.55274873]
[1717468077688,4.90047,3777.9,3777.3,2.03553969]
[1717468077998,4.90047,3777.9,3777.4,0.91979096]
[1717468079898,4.90047,3777.9,3777.5,0.91979096]
[1717468080102,4.90047,3777.9,3777.2,0.55274873]
[1717468080399,4.90047,3777.9,3777.2,4.12285433]
[1717468080603,4.90047,3777.9,3777.3,0.91980015]
[1717468084538,4.90047,3777.9,3777.2,5.14574122]
[1717468084539,4.90047,3777.9,3777.4,1.47254888]
[1717468084679,4.90047,3777.9,3777.5,0.91980015]
[1717468085020,2.2535,3777.9,3777.6,0.91980015]
[1717468085170,2.2535,3777.9,3777.4,0.55274873]
[1717468085376,2.2535,3777.9,3777.4,0.9197495]
[1717468085886,0.09212417,3777.8,3777.4,1.47249823]
[1717468086392,0.09212417,3777.8,3777.5,0.9197495]
[1717468086594,2.2535,3777.9,3777.6,0.9197495]
[1717468086785,2.2535,3777.9,3777.3,3.20008873]
[1717468086981,2.2535,3777.9,3777.4,0.91976714]
[1717468087184,2.2535,3777.9,3777.4,2.29945418]
[1717468090307,2.2535,3777.9,3777.5,0.91976714]
[1717468090513,2.2535,3777.9,3777.4,0.91976714]
[1717468090716,2.2535,3777.9,3777.5,0.91977918]
[1717468090876,2.2535,3777.9,3777.3,3.20008873]
[1717468091077,2.2535,3777.9,3777.4,0.91977881]
[1717468093699,0.0874228,3777.8,3777.4,0.91977881]
[1717468094329,2.2535,3777.9,3777.4,0.91977881]
[1717468094635,2.2535,3777.9,3777.3,2.64734]
[1717468094636,2.2535,3777.9,3777.5,0.91978341]
[1717468094802,2.2535,3777.9,3777.3,4.57976385]
[1717468094803,2.2535,3777.9,3777.3,3.20008873]
[1717468095001,2.2535,3777.9,3777.4,0.9197851]
[1717468097412,0.0843038,3777.8,3777.4,0.9197851]
[1717468097824,2.2535,3777.9,3777.4,0.9197851]
[1717468101234,0.08117997,3777.8,3777.4,0.9197851]
[1717468101610,2.2535,3777.9,3777.4,0.9197851]
[1717468102897,2.2535,3777.9,3777.4,1.47253383]
[1717468103909,2.2535,3777.9,3777.5,0.9197851]
[1717468104122,2.2535,3777.9,3777.3,3.20008873]
[1717468104331,2.2535,3777.9,3777.4,0.91979338]
[1717468105299,0.07844197,3777.8,3777.4,0.91979338]
[1717468107342,0.07844197,3777.8,3777.5,0.91979274]
[1717468107638,0.07844197,3777.8,3777.6,0.91979274]
[1717468107822,0.07844197,3777.8,3777.3,3.20008873]
[1717468108020,0.07844197,3777.8,3777.4,0.91979274]
[1717468108199,2.2535,3777.9,3777.4,0.91979274]
[1717468108628,0.07589034,3777.8,3777.4,0.91979274]
[1717468109111,2.2535,3777.9,3777.4,0.91979274]
[1717468109609,0.07557247,3777.8,3777.4,0.91979274]
[1717468110004,2.2535,3777.9,3777.4,0.91979274]
[1717468110238,0.0752658,3777.7,3777.4,0.91979274]
[1717468110614,2.2535,3777.9,3777.4,0.91979274]
[1717468113011,0.07278317,3777.8,3777.4,0.91979274]
[1717468113540,2.2535,3777.9,3777.4,0.91979274]
[1717468113836,0.07278317,3777.7,3777.4,0.91979274]
[1717468114001,2.2535,3777.9,3777.4,0.91979274]
[1717468114441,0.07278317,3777.8,3777.4,0.91979274]
[1717468114815,2.2535,3777.9,3777.4,0.91979274]
[1717468115202,0.07278317,3777.8,3777.4,0.91979274]
[1717468115726,2.2535,3777.9,3777.4,0.91979274]
[1717468116040,2.2535,3777.9,3777.5,1.47254147]
[1717468116338,2.2535,3777.9,3777.5,0.91979274]
[1717468116640,2.2535,3777.9,3777.6,0.91979274]
[1717468116815,2.2535,3777.9,3777.4,0.55274873]
[1717468117017,2.2535,3777.9,3777.5,0.91975071]
[1717468117203,2.2535,3777.9,3777.6,0.91975071]
[1717468117398,2.2535,3777.9,3777.4,0.55274873]
[1717468117616,2.64695,3778.0,3777.4,1.47253272]
[1717468117844,2.64695,3778.0,3777.5,0.91978399]
[1717468118006,2.64695,3778.0,3777.5,1.47253272]
[1717468118343,0.07275249,3777.9,3777.5,1.47253272]
[1717468118505,0.07275249,3777.9,3777.6,0.91978399]
[1717468118708,0.07275249,3777.9,3777.7,0.91978399]
[1717468118905,0.07275249,3777.9,3777.8,0.91972407]
[1717468119105,0.07275249,3777.9,3777.6,0.91972407]
[1717468119333,0.07275249,3777.9,3777.7,0.91972407]
[1717468119520,0.07275249,3777.9,3777.5,0.55274873]
[1717468120164,0.07275249,3777.9,3777.5,1.4724964]
[1717468120851,0.07275249,3777.9,3777.6,0.91975269]
[1717468121008,0.07275249,3777.9,3777.7,0.91975269]
[1717468121205,0.07275249,3777.9,3777.5,0.55274873]
[1717468121533,0.07275249,3777.9,3777.5,1.47250224]
[1717468123857,0.07275249,3777.9,3777.5,0.91975351]
[1717468124055,0.07275249,3777.9,3777.6,0.91975351]
[1717468124217,0.07275249,3777.9,3777.4,1.11574873]
[1717468124559,0.07275249,3777.9,3777.5,0.91976387]
[1717468126023,0.07275249,3777.9,3777.4,1.11574873]
[1717468126218,0.07275249,3777.9,3777.5,0.91974663]
[1717468126424,0.07275249,3777.9,3777.5,1.47249536]
[1717468127924,0.07275249,3777.9,3777.5,0.55274873]
[1717468128146,0.07275249,3777.9,3777.5,1.47247028]
[1717468129931,0.07275249,3777.9,3777.6,1.47247028]
[1717468130126,0.07275249,3777.9,3777.7,0.91972155]
[1717468130433,0.07275249,3777.9,3777.5,0.55274873]
[1717468130655,0.07275249,3777.9,3777.5,1.47246414]
[1717468133285,0.07275249,3777.9,3777.6,0.91971599]
[1717468133583,0.07275249,3777.9,3777.7,0.91971599]
[1717468133784,0.07275249,3777.9,3777.5,0.55274873]
[1717468134274,0.07275249,3777.9,3777.5,1.47246088]
[1717468139595,2.3174,3778.2,3777.5,1.47246088]
[1717468139780,0.07279082,3777.8,3777.5,1.47246088]
[1717468139989,2.3174,3778.2,3777.5,1.47246088]
[1717468140295,2.3174,3778.2,3777.5,4.11966088]
[1717468140602,2.3174,3778.2,3777.6,0.91971215]
[1717468140761,0.07279082,3778.1,3777.6,0.91971215]
[1717468142167,0.07279082,3778.1,3777.9,0.563]
[1717468142581,0.07279082,3778.1,3777.7,0.563]
[1717468142767,0.07279082,3778.1,3777.8,0.91967942]
[1717468145500,0.07279082,3778.1,3777.7,0.563]
[1717468145811,0.07279082,3778.1,3777.8,0.9196721]